[Event "45th FIDE Olympiad 2024"]
[Site "Budapest"]
[Date "2024.09.18"]
[Round "7.38"]
[White "Wojtaszek, Radoslaw"]
[Black "Shevchenko, Kirill"]
[Result "1/2-1/2"]
[ECO "D46"]
[WhiteElo "2681"]
[BlackElo "2673"]
[Annotator "TA"]
[PlyCount "60"]
[EventDate "2024.09.05"]
[EventType "team-tourn"]
[EventCountry "HUN"]
[SourceTitle "playchess.com"]
[Source "ChessBase"]
[SourceQuality "1"]
[WhiteTeam "Poland"]
[BlackTeam "Romania"]
[WhiteTeamCountry "POL"]
[BlackTeamCountry "ROU"]
[TimeControl "40/5400+30:1800+30"]

{[%evp 20,60,19,29,47,52,39,20,34,9,36,31,37,49,49,33,55,54,33,36,21,31,39,27,45,0,0,0,0,-9,0,-6,-3,0,-7,-1,-10,-8,0,-13,0,-29,0]} 1. d4 {[%emt 0:00:03]} Nf6 {[%emt 0:00:23]} 2. c4 {[%emt 0:00:05]} c6 {[%emt 0:00:04]} 3. Nc3 {[%emt 0:00:19]} d5 {[%emt 0:00:07]} 4. Nf3 {[%emt 0:00:05]} e6 {[%emt 0:00:04][%cal Be7e6,Be6e5,Be5e4][%mdl 32]} 5. e3 {[%emt 0:00:07]} Nbd7 {[%emt 0:00:03]} 6. Qc2 {[%emt 0:00:07]} Bd6 {[%emt 0:00:06]} 7. Bd3 {[%emt 0:00:10]} O-O {[%emt 0:00:07]} 8. O-O {[%emt 0:00:08]} dxc4 {[%emt 0:00:07]} 9. Bxc4 {[%emt 0:00:07]} e5 {[%emt 0:00:02]} 10. h3 {[%emt 0:00:30]} Qe7 {[%emt 0:03:06]} 11. a3 {[%emt 0:03:46]} e4 {[%emt 0:00:26]} 12. Ng5 {[%emt 0:03:50]} Nb6 {[%emt 0:00:21][%cal Bd7b6,Bb6d5,Bd5c3][%mdl 32]} 13. Bb3 {[%emt 0:02:58][%cal Rg5e4]} Bf5 {[%emt 0:04:49] The position is equal.} 14. f3 {[%emt 0:04:52][%cal Rf3e4]} Nbd5 {[%emt 0:02:02]} 15. Ngxe4 {[%emt 0:10:37]} (15. fxe4 Bg6 16. Qe2 Nxc3 (16... Bxe4 17. Ncxe4 Nxe4 18. Nxe4 $14) 17. bxc3 Nxe4 (17... Bxe4 18. Bc2 $11) 18. Nxe4 Qxe4 $11 (18... Bxe4 19. Bc2 $15)) 15... Nxc3 {[%emt 0:05:45]} 16. Nxf6+ {[%emt 0:00:07]} Qxf6 {[%emt 0:00:05]} 17. Qxc3 {[%emt 0:00:04]} c5 {[%emt 0:00:11]} 18. dxc5 {[%emt 0:00:06]} Be5 {[%emt 0:00:27]} 19. Qd2 {[%emt 0:17:27]} Rad8 {[%emt 0:14:36]} 20. Qf2 {[%emt 0:01:42]} Qg6 {[%emt 0:01:15][%cal Oe5g3] [#] White must now prevent ...Bg3!} 21. g4 {[%emt 0:06:34]} h5 {[%emt 0:20:31]} 22. Qg2 {[%emt 0:04:08]} Bd3 {[%emt 0:04:25]} 23. Re1 {[%emt 0:06:18]} b6 {[%emt 0:05:28]} 24. c6 {[%emt 0:04:59]} hxg4 {[%emt 0:05:32]} 25. hxg4 {[%emt 0:00:15]} Qxc6 {[%emt 0:00:12]} 26. e4 {[%emt 0:00:09]} Qb5 {[%emt 0:05:30]} 27. Bd5 {[%emt 0:03:58]} Rc8 {[%emt 0:08:09] aiming for ...Rc2.} 28. a4 {[%emt 0:01:22]} Qa6 {[%emt 0:10:23]} 29. Bb3 {[%emt 0:02:23] Inhibits Rc2.} Bc4 {[%emt 0:00:43][%mdl 1024] Black has compensation.} 30. Bc2 {[%emt 0:02:52]} Bd3 {[%emt 0:01:18] Weighted Error Value: White=0.07 (flawless) /Black=0.04 (flawless) .  Inaccurate:     	White=2     	Black=1      OK:         	White=9     	Black=12     Best:        	White=2     	Black=1} 1/2-1/2

[Event "45th FIDE Olympiad 2024"]
[Site "Budapest"]
[Date "2024.09.18"]
[Round "7.38"]
[White "Prasad, Rudr"]
[Black "Eichab, Charles"]
[Result "0-1"]
[WhiteElo "1777"]
[BlackElo "2013"]
[PlyCount "74"]
[EventDate "2024.09.05"]
[EventType "team-tourn"]
[EventCountry "HUN"]
[WhiteTeam "Fiji"]
[BlackTeam "Namibia"]
[WhiteTeamCountry "FIJ"]
[BlackTeamCountry "NAM"]
[TimeControl "40/5400+30:1800+30"]

1. d4 Nf6 2. c4 e6 3. g3 d5 4. Bg2 c5 5. Nf3 Nc6 6. cxd5 exd5 7. O-O Be7 8. dxc5 Bxc5 9. Qc2 Be7 10. a3 O-O 11. Rd1 Be6 12. b4 Rc8 13. Qd3 Ne4 14. Bb2 Bf6 15. Nd4 Qb6 16. Bxe4 dxe4 17. Qxe4 Nxd4 18. Rxd4 Bxd4 19. Bxd4 Rc1+ 20. Kg2 Qc6 21. Qxc6 Rxc6 22. Nd2 Rc2 23. Nf1 Rxe2 24. Bxa7 Ra2 25. Rxa2 Bxa2 26. Bc5 Ra8 27. Ne3 Rxa3 28. Kf3 Be6 29. Ke4 f6 30. h4 Ra2 31. f3 Kf7 32. h5 Bd7 33. f4 Rd2 34. Nc4 Bc6+ 35. Kf5 Bf3 36. Nxd2 g6+ 37. hxg6+ hxg6# {0-} 0-1

[Event "45th FIDE Olympiad 2024"]
[Site "Budapest"]
[Date "2024.09.18"]
[Round "7.39"]
[White "Lupulescu, Constantin"]
[Black "Piorun, Kacper"]
[Result "1/2-1/2"]
[ECO "D02"]
[WhiteElo "2590"]
[BlackElo "2599"]
[Annotator "TA"]
[PlyCount "88"]
[EventDate "2024.09.05"]
[EventType "team-tourn"]
[EventCountry "HUN"]
[SourceTitle "playchess.com"]
[Source "ChessBase"]
[SourceQuality "1"]
[WhiteTeam "Romania"]
[BlackTeam "Poland"]
[WhiteTeamCountry "ROU"]
[BlackTeamCountry "POL"]
[TimeControl "40/5400+30:1800+30"]

{[%evp 11,88,0,0,9,7,7,18,0,50,21,9,8,0,0,28,0,11,-4,11,21,13,-29,-12,-19,-23,-33,0,0,0,0,0,0,0,0,0,0,0,0,0,0,27,20,58,52,66,12,4,4,41,53,37,12,13,14,17,13,13,11,11,13,13,17,20,20,20,20,25,0,0,0,12,8,17,17,17,0,31,0,9]} 1. d4 {[%emt 0:00:01]} e6 {[%emt 0:00:06]} 2. Nf3 {[%emt 0:00:48]} Nf6 {[%emt 0:00:16]} 3. Bf4 {[%emt 0:00:24]} d5 {[%emt 0:05:24]} 4. e3 {[%emt 0:00:25]} c5 {[%emt 0:00:04]} 5. Nbd2 {[%emt 0:01:17]} Nc6 {[%emt 0:00:08]} 6. c3 {[%emt 0:00:29]} h6 {[%emt 0:00:05] Recently 6...cxd4 got a lot of attention.} 7. Bd3 {[%emt 0:04:46] D02: 1 d4 d5 2 Nf3 sidelines, including 2...Nf6 3 g3 and 2...Nf6 3 Bf4.} Bd6 {[%emt 0:00:17]} 8. Bg3 {[%emt 0:05:02]} Nh5 {[%emt 0:12:19]} 9. Be5 $146 {[%emt 0:24:21]} ({Predecessor:} 9. Bxd6 Qxd6 10. dxc5 Qxc5 11. Nd4 Nf6 12. O-O Bd7 13. N2f3 O-O 14. Bc2 Rfe8 15. Nxc6 bxc6 {0-1 Acosta Cruz,O (2098)-Alvarez Albiol,V (2159) Titled Tuesday intern op 12th Sep Late blitz 2023 (11)}) 9... Qc7 {[%emt 0:10:48]} (9... O-O $11) 10. Bb5 {[%emt 0:03:15]} Bd7 {[%emt 0:00:15]} 11. Bxc6 {[%emt 0:06:43]} Bxc6 {[%emt 0:02:35]} 12. O-O {[%emt 0:00:54]} Nf6 {[%emt 0:02:46]} 13. Qe2 {[%emt 0:05:16]} O-O {[%emt 0:07:09]} 14. Rfd1 {[%emt 0:09:53]} Rfd8 {[%emt 0:02:25]} 15. Bxf6 {[%emt 0:06:06]} gxf6 {[%emt 0:00:05]} 16. e4 {[%emt 0:00:15]} cxd4 {[%emt 0:00:26]} 17. cxd4 {[%emt 0:00:15]} dxe4 {[%emt 0:04:25]} 18. Nxe4 {[%emt 0:00:07]} Be7 {[%emt 0:00:20]} (18... Kg7 {seems wilder.} 19. Rac1 Qa5 20. Ne1 Qf5) 19. Nc3 $1 {[%emt 0:06:22][%cal Od4d5]} Qa5 {[%emt 0:15:55]} 20. Rd3 {[%emt 0:00:18]} Qh5 {[%emt 0:03:15]} 21. Rad1 {[%emt 0:01:42][%cal Od4d5]} Bd5 {[%emt 0:00:09]} 22. Nxd5 {[%emt 0:00:59]} Rxd5 {[%emt 0:00:18]} 23. Rb3 {[%emt 0:04:00]} b5 {[%emt 0:05:12]} 24. Rc1 {[%emt 0:02:06]} Rad8 {[%emt 0:00:49]} 25. Rbc3 {[%emt 0:03:27]} Bd6 {[%emt 0:07:00][%cal Od6h2] Hoping for ...Bxh2+!} 26. g3 {[%emt 0:05:14]} a5 {[%emt 0:02:20]} 27. Rc8 {[%emt 0:01:34]} Bf8 {[%emt 0:03:17]} 28. Rxd8 {[%emt 0:02:00]} (28. R1c7 $14) 28... Rxd8 $11 {[%emt 0:00:04]} 29. Qe4 {[%emt 0:00:29]} f5 {[%emt 0:07:06]} 30. Qb7 {[%emt 0:00:39][%cal Ob7c7]} f4 $1 {[%emt 0:02:16]} 31. Kg2 {[%emt 0:01:44]} ({Much weaker is} 31. gxf4 Qg4+ 32. Kh1 Qxf4 33. Rg1+ Kh7 $15) 31... fxg3 {[%emt 0:00:14]} 32. hxg3 {[%emt 0:00:10]} Qd5 {[%emt 0:01:55]} (32... a4 {looks sharper.} 33. Rc7 Bd6 34. Rc6 Qd5) 33. Qxd5 {[%emt 0:02:31]} (33. Qc7 {feels hotter.} a4 34. Qf4 Rd7 35. Rc8) 33... Rxd5 {[%emt 0:00:05]} 34. Rc8 {[%emt 0:00:27]} Kg7 {[%emt 0:00:06]} 35. Kf1 {[%emt 0:00:50]} Bd6 {[%emt 0:03:11]} 36. Ke2 {[%emt 0:01:02]} h5 {[%emt 0:02:14]} 37. Ra8 {[%emt 0:01:44]} a4 {[%emt 0:00:07]} 38. Ra7 {[%emt 0:00:27]} Kf8 {[%emt 0:01:25]} 39. Ra8+ {[%emt 0:01:04]} Ke7 {[%emt 0:00:11]} 40. Ra7+ {[%emt 0:00:13]} Ke8 {[%emt 0:00:19]} 41. Ke3 {[%emt 0:06:37]} Kf8 {[%emt 0:04:50]} 42. Ke4 {[%emt 0:07:56]} Ke8 {[%emt 0:05:40]} 43. Ke3 {[%emt 0:07:00]} Kf8 {[%emt 0:00:05]} 44. Ke4 {[%emt 0:00:49]} Ke8 {[%emt 0:00:04]} 1/2-1/2

[Event "45th FIDE Olympiad 2024"]
[Site "Budapest"]
[Date "2024.09.18"]
[Round "7.39"]
[White "Khoa, Goodwill"]
[Black "Terubea, Ronald"]
[Result "1-0"]
[WhiteElo "1890"]
[BlackElo "1836"]
[Annotator "COMBH"]
[PlyCount "89"]
[EventDate "2024.09.05"]
[EventType "team-tourn"]
[EventCountry "HUN"]
[WhiteTeam "Namibia"]
[BlackTeam "Fiji"]
[WhiteTeamCountry "NAM"]
[BlackTeamCountry "FIJ"]
[TimeControl "40/5400+30:1800+30"]

1. Nf3 Nc6 2. c4 e5 3. Nc3 Nf6 4. d3 d5 5. cxd5 Nxd5 6. g3 Be7 7. Bg2 Be6 8. Qa4 O-O 9. O-O Nb6 10. Qc2 f5 11. Bd2 Bf6 12. Qc1 h6 13. Rd1 Qe7 14. Bh3 g5 15. Bg2 g4 16. Nh4 Bxh4 17. gxh4 Qxh4 18. Bxh6 Rf7 19. Qg5+ Qxg5 20. Bxg5 Kh7 21. f4 Rg8 22. Rac1 Nd4 23. e3 Nf3+ 24. Bxf3 gxf3 25. Kf2 exf4 26. exf4 Nd5 27. Nb5 Nf6 28. h3 c6 29. Nc3 Nd5 30. a3 Rd7 31. Kxf3 Nc7 32. Rd2 Bb3 33. Re1 Rgg7 34. h4 a5 35. Re5 Rgf7 36. Rxa5 b5 37. Ra7 c5 38. Kf2 Rf8 39. Nxb5 Rff7 40. Nxc7 Rxc7 41. Rxc7 Rxc7 42. Re2 Kg6 43. Re7 Rc6 44. Kg3 c4 45. h5+ 1-0

[Event "45th FIDE Olympiad 2024"]
[Site "Budapest"]
[Date "2024.09.18"]
[Round "7.40"]
[White "Gumularz, Szymon"]
[Black "Nisipeanu, Liviu-Dieter"]
[Result "0-1"]
[ECO "E43"]
[WhiteElo "2571"]
[BlackElo "2580"]
[Annotator "RC"]
[PlyCount "110"]
[EventDate "2024.09.05"]
[EventType "team-tourn"]
[EventCountry "HUN"]
[SourceTitle "playchess.com"]
[Source "ChessBase"]
[SourceQuality "1"]
[WhiteTeam "Poland"]
[BlackTeam "Romania"]
[WhiteTeamCountry "POL"]
[BlackTeamCountry "ROU"]
[TimeControl "40/5400+30:1800+30"]

1. d4 {[%emt 0:00:04]} Nf6 {[%emt 0:00:05]} 2. c4 {[%emt 0:00:04]} e6 {[%emt 0:00:06]} 3. Nc3 {[%emt 0:00:05]} Bb4 {[%emt 0:00:04]} 4. e3 {[%emt 0:00:05]} O-O {[%emt 0:00:35]} 5. Bd3 {[%emt 0:02:23]} c5 {[%emt 0:00:14]} 6. Nf3 {[%emt 0:01:43]} b6 {[%emt 0:00:25]} 7. O-O {[%emt 0:00:34]} Bb7 {[%emt 0:00:09]} 8. Na4 {[%emt 0:01:18]} cxd4 {[%emt 0:00:07]} 9. exd4 {[%emt 0:00:22]} Re8 {[%emt 0:00:07]} 10. a3 {[%emt 0:01:37]} Bf8 {[%emt 0:00:07]} 11. b4 {[%emt 0:03:44]} d6 {[%emt 0:00:19]} 12. Re1 {[%emt 0:03:05]} Nbd7 {[%emt 0:00:59]} 13. Bf4 {[%emt 0:05:32]} a5 {[%emt 0:16:33]} 14. b5 {[%emt 0:10:56]} Rc8 {[%emt 0:00:27]} 15. Nd2 {[%emt 0:06:05]} d5 {[%emt 0:10:38]} 16. Qb3 {[%emt 0:06:20]} dxc4 {[%emt 0:20:56]} 17. Nxc4 {[%emt 0:04:32]} Nh5 {[%emt 0:05:23]} 18. Be3 {[%emt 0:01:21]} Bd5 {[%emt 0:00:42]} 19. Rac1 {[%emt 0:02:23]} Qh4 {[%emt 0:04:14]} 20. Qd1 {[%emt 0:06:58]} Nhf6 {[%emt 0:12:14]} 21. g3 {[%emt 0:16:38]} Qh3 {[%emt 0:00:15]} 22. Bf1 {[%emt 0:00:02]} Qf5 {[%emt 0:00:06]} 23. Naxb6 {[%emt 0:01:39]} Nxb6 {[%emt 0:04:01]} 24. Nxb6 {[%emt 0:00:03]} Bf3 {[%emt 0:02:00]} 25. Qb3 {[%emt 0:03:02]} Be4 {[%emt 0:06:46]} 26. Bg2 {[%emt 0:04:52]} Rxc1 {[%emt 0:02:16]} 27. Rxc1 {[%emt 0:00:09]} Bxg2 {[%emt 0:00:17]} 28. Kxg2 {[%emt 0:00:02]} Rb8 {[%emt 0:00:05]} 29. Rc6 {[%emt 0:01:20]} a4 {[%emt 0:00:28]} 30. Qc4 {[%emt 0:09:15]} Qe4+ {[%emt 0:04:48]} 31. Kg1 {[%emt 0:00:04]} Qb1+ {[%emt 0:00:06]} 32. Qf1 {[%emt 0:02:29]} Qb3 {[%emt 0:00:15]} 33. Bf4 {[%emt 0:02:43]} Rd8 {[%emt 0:00:24]} 34. Qc4 {[%emt 0:02:27]} Qd1+ {[%emt 0:04:36]} 35. Qf1 {[%emt 0:00:08]} Qb3 {[%emt 0:00:18]} 36. Qc4 {[%emt 0:01:31]} Qd1+ {[%emt 0:00:06]} 37. Kg2 {[%emt 0:00:01]} Rxd4 {[%emt 0:00:07]} 38. Qc2 {[%emt 0:00:04]} Qh5 {[%emt 0:00:29]} 39. Be3 {[%emt 0:00:28]} Rd8 {[%emt 0:00:41]} 40. Bc5 {[%emt 0:02:34]} Ng4 {[%emt 0:02:07]} 41. h3 {[%emt 0:03:43]} Ne5 {[%emt 0:00:25]} 42. g4 {[%emt 0:02:27]} Qh4 {[%emt 0:11:22]} 43. Rc8 {[%emt 0:08:42]} Rxc8 {[%emt 0:03:12]} 44. Nxc8 {[%emt 0:00:04]} h5 {[%emt 0:00:06]} 45. Bd4 {[%emt 0:07:08]} Ng6 {[%emt 0:02:43]} 46. Qe4 {[%emt 0:01:59]} hxg4 {[%emt 0:00:45]} 47. hxg4 {[%emt 0:00:05]} e5 {[%emt 0:00:28]} 48. Be3 {[%emt 0:09:53]} Nf4+ {[%emt 0:01:35]} 49. Bxf4 {[%emt 0:00:47]} Qxg4+ {[%emt 0:00:06]} 50. Kf1 {[%emt 0:00:55]} exf4 {[%emt 0:00:18]} 51. Qe8 {[%emt 0:00:53]} Qh3+ {[%emt 0:02:23]} 52. Ke2 {[%emt 0:00:08]} Qxa3 {[%emt 0:00:11]} 53. b6 {[%emt 0:00:07]} f3+ {[%emt 0:00:39]} 54. Kd2 {[%emt 0:00:11]} Qb4+ {[%emt 0:00:48]} 55. Kd3 {[%emt 0:00:18]} a3 {[%emt 0:00:34]} 0-1

[Event "45th FIDE Olympiad 2024"]
[Site "Budapest"]
[Date "2024.09.18"]
[Round "7.40"]
[White "Maharaj, Yash Krishen"]
[Black "Nitzborn, Max Baron"]
[Result "1/2-1/2"]
[WhiteElo "1847"]
[BlackElo "1800"]
[PlyCount "102"]
[EventDate "2024.09.05"]
[EventType "team-tourn"]
[EventCountry "HUN"]
[WhiteTeam "Fiji"]
[BlackTeam "Namibia"]
[WhiteTeamCountry "FIJ"]
[BlackTeamCountry "NAM"]
[TimeControl "40/5400+30:1800+30"]

1. e4 c5 2. Nf3 Nc6 3. d4 cxd4 4. Nxd4 g6 5. c4 Bg7 6. Be3 Nf6 7. Nc3 d6 8. f3 Bd7 9. Qd2 O-O 10. Be2 Nxd4 11. Bxd4 Bc6 12. O-O b6 13. Be3 Rc8 14. Rac1 Qd7 15. b3 Qb7 16. Rfe1 Nd7 17. Nd5 Rfe8 18. Nb4 a5 19. Nxc6 Qxc6 20. f4 Qxe4 21. Bg4 Qc6 22. Bxd7 Qxd7 23. Bxb6 Qc6 24. Bf2 Ra8 25. Qd5 Qc7 26. Rcd1 Kf8 27. f5 Be5 28. Bd4 Bxd4+ 29. Qxd4 Qc5 30. Qxc5 dxc5 31. Re5 Rac8 32. Kf2 Rc6 33. g4 Rec8 34. Red5 Kg7 35. g5 gxf5 36. Rxf5 h6 37. Rd7 Kg6 38. Re5 hxg5 39. Rexe7 Rf6+ 40. Kg2 Rcc6 41. Rd5 Rfe6 42. Rxe6+ Rxe6 43. Rxc5 Re2+ 44. Kg3 Rxa2 45. h4 f6 46. hxg5 fxg5 47. Rd5 Ra3 48. Rb5 a4 49. Kg4 Rxb3 50. Rxg5+ Kf6 51. Ra5 Rb4 1/2-1/2

[Event "45th FIDE Olympiad 2024"]
[Site "Budapest"]
[Date "2024.09.18"]
[Round "7.41"]
[White "Grandelius, Nils"]
[Black "Keymer, Vincent"]
[Result "1/2-1/2"]
[ECO "B51"]
[WhiteElo "2653"]
[BlackElo "2730"]
[Annotator "TA"]
[PlyCount "101"]
[EventDate "2024.09.05"]
[EventType "team-tourn"]
[EventCountry "HUN"]
[SourceTitle "playchess.com"]
[Source "ChessBase"]
[SourceQuality "1"]
[WhiteTeam "Sweden"]
[BlackTeam "Germany"]
[WhiteTeamCountry "SWE"]
[BlackTeamCountry "GER"]
[TimeControl "40/5400+30:1800+30"]

{[%evp 9,101,5,27,10,16,10,10,0,0,16,10,0,0,0,2,-10,-6,0,0,0,0,0,0,0,0,0,0,0,0,0,0,0,0,0,0,0,0,0,0,0,23,15,21,20,20,16,20,14,21,18,15,20,19,12,21,14,12,0,0,0,0,0,0,0,0,0,0,0,0,0,0,0,0,0,0,0,0,0,0,0,0,0,0,0,0,0,0,0,0,0,0,0,0,0]} 1. e4 {[%emt 0:00:22]} c5 {[%emt 0:00:04]} 2. Nf3 {[%emt 0:01:00]} d6 {[%emt 0:00:03]} 3. Bb5+ {[%emt 0:01:13]} Nd7 {[%emt 0:00:04]} 4. O-O {[%emt 0:01:05]} a6 {[%emt 0:00:09]} 5. Bd3 {[%emt 0:00:14]} Ngf6 {[%emt 0:00:35]} 6. c3 {[%emt 0:00:27]} b5 {[%emt 0:06:57]} 7. Bc2 {[%emt 0:01:07]} Bb7 {[%emt 0:04:46]} 8. Re1 {[%emt 0:00:26]} c4 {[%emt 0:06:19]} 9. a4 {[%emt 0:04:53]} e6 {[%emt 0:03:40]} 10. axb5 {[%emt 0:00:53]} axb5 {[%emt 0:00:06]} 11. Rxa8 {[%emt 0:00:08]} Qxa8 {[%emt 0:05:26]} 12. Na3 {[%emt 0:01:18]} Bxe4 {[%emt 0:13:12]} 13. Bxe4 {[%emt 0:02:43]} Nxe4 {[%emt 0:00:02]} 14. d3 {[%emt 0:00:25]} cxd3 {[%emt 0:03:02][%cal Ob5b4]} 15. Nxb5 {[%emt 0:00:34]} Qb7 {[%emt 0:26:12] Repels Nc7+} 16. c4 {[%emt 0:01:08]} d5 $1 {[%emt 0:00:46]} 17. cxd5 {[%emt 0:01:46]} exd5 {[%emt 0:05:59]} ({Don't play} 17... Qxb5 18. Rxe4 Nc5 19. Rd4) 18. Qb3 {[%emt 0:02:35]} Ndc5 {[%emt 0:02:04]} 19. Qxd5 {[%emt 0:01:58]} Qxd5 {[%emt 0:00:14]} 20. Nc7+ {[%emt 0:00:05]} Kd7 {[%emt 0:03:47]} 21. Nxd5 {[%emt 0:00:08]} Bd6 {[%emt 0:04:16]} 22. b4 {[%emt 0:24:16]} Nb3 {[%emt 0:00:04] [#] White must now prevent ...d2.} 23. Rxe4 {[%emt 0:00:22]} Nxc1 {[%emt 0:00:05]} 24. Re1 {[%emt 0:01:01]} Ne2+ {[%emt 0:02:23]} 25. Kf1 {[%emt 0:02:46]} Ke6 {[%emt 0:07:51] [#] The position is equal.} 26. Rd1 $1 {[%emt 0:03:17]} Kxd5 {[%emt 0:00:04]} 27. Rxd3+ {[%emt 0:00:07]} Kc6 {[%emt 0:00:06]} 28. b5+ {[%emt 0:06:07]} Kc5 $1 {[%emt 0:00:04]} 29. Kxe2 $11 {[%emt 0:01:33][%mdl 4096] Endgame. KRB-KRN} Re8+ {[%emt 0:00:56]} 30. Kf1 {[%emt 0:08:00]} f6 {[%emt 0:01:26]} 31. g3 {[%emt 0:07:28]} Bf8 {[%emt 0:02:17]} 32. Nd4 {[%emt 0:13:58]} g6 {[%emt 0:02:14]} 33. Re3 {[%emt 0:02:43]} Rxe3 34. fxe3 {[%emt 0:00:01] aiming for Ne6+. KB-KN} Bd6 {[%emt 0:01:02]} 35. Ke2 {[%emt 0:02:10]} Be5 {[%emt 0:00:18]} 36. Ne6+ {[%emt 0:05:39]} Kxb5 {[%emt 0:00:03]} 37. Nf8 {[%emt 0:00:05]} Bd6 $1 {[%emt 0:00:05]} 38. Nxh7 {[%emt 0:00:03]} Be7 {[%emt 0:00:03]} 39. Kf3 {[%emt 0:02:21]} Kc6 {[%emt 0:00:10]} 40. g4 {[%emt 0:01:39][%cal Bg3g4,Bg4g5][%mdl 32]} Kd5 {[%emt 0:00:47]} 41. h4 {[%emt 0:30:52]} Ke6 {[%emt 0:31:34]} 42. e4 {[%emt 0:01:57]} Ke5 {[%emt 0:01:27]} 43. Ke3 {[%emt 0:00:00]} Bc5+ {[%emt 0:00:00]} 44. Kf3 {[%emt 0:00:00]} Be7 {[%emt 0:00:00]} 45. g5 {[%emt 0:00:00] White threatens gxf6 and mate.} f5 {[%emt 0:00:00]} 46. exf5 Kxf5 {[%emt 0:00:00]} 47. Nf6 {[%emt 0:00:00]} Bxf6 {[%emt 0:00:00]} 48. gxf6 {[%emt 0:00:00]} Kxf6 {[%emt 0:00:00]} 49. Kg4 {[%emt 0:00:00]} Kg7 {[%emt 0:00:00]} 50. h5 {[%emt 0:00:00]} gxh5+ {[%emt 0:00:00]} 51. Kxh5 {[%emt 0:00:00] A balanced but interesting game.   Weighted Error Value: White=0.02 (flawless) /Black=0.02 (flawless) .  OK:         	White=22    	Black=27     Best:        	White=3     	Black=3      Strong:       	---       	Black=3} 1/2-1/2

[Event "45th FIDE Olympiad 2024"]
[Site "Budapest"]
[Date "2024.09.18"]
[Round "7.41"]
[White "Giasi, Viresh"]
[Black "Khalema, Sechaba"]
[Result "1-0"]
[WhiteElo "1998"]
[BlackElo "1779"]
[PlyCount "57"]
[EventDate "2024.09.05"]
[EventType "team-tourn"]
[EventCountry "HUN"]
[WhiteTeam "Suriname"]
[BlackTeam "Lesotho"]
[BlackTeamCountry "LES"]
[TimeControl "40/5400+30:1800+30"]

1. d4 d5 2. Nf3 Nf6 3. e3 Bg4 4. Nbd2 e6 5. Be2 Be7 6. b3 Nbd7 7. Bb2 Qb8 8. Ne5 Bxe2 9. Qxe2 Nb6 10. O-O O-O 11. f4 Nc8 12. Ng4 Nd6 13. Nxf6+ Bxf6 14. Ba3 Rd8 15. Bxd6 Rxd6 16. g4 g6 17. b4 a5 18. b5 c5 19. c3 a4 20. e4 Rd7 21. e5 Bd8 22. f5 cxd4 23. cxd4 Bb6 24. Nf3 Rc7 25. Rac1 Qc8 26. Rxc7 Qxc7 27. Qe3 Qc2 28. f6 Qe4 29. Qh6 1-0

[Event "45th FIDE Olympiad 2024"]
[Site "Budapest"]
[Date "2024.09.18"]
[Round "7.42"]
[White "Bluebaum, Matthias"]
[Black "Hillarp Persson, Tiger"]
[Result "1-0"]
[ECO "E51"]
[WhiteElo "2640"]
[BlackElo "2457"]
[Annotator "TA"]
[PlyCount "81"]
[EventDate "2024.09.05"]
[EventType "team-tourn"]
[EventCountry "HUN"]
[SourceTitle "playchess.com"]
[Source "ChessBase"]
[SourceQuality "1"]
[WhiteTeam "Germany"]
[BlackTeam "Sweden"]
[WhiteTeamCountry "GER"]
[BlackTeamCountry "SWE"]
[TimeControl "40/5400+30:1800+30"]

{[%evp 16,81,26,19,39,27,36,32,23,33,28,-1,-18,-29,-48,-21,9,12,34,36,26,34,58,50,103,118,119,118,118,113,115,165,133,117,143,124,123,108,149,80,88,40,73,87,94,99,105,91,100,83,102,103,94,97,156,156,162,150,214,218,210,210,304,210,418,425,443,293]} 1. d4 {[%emt 0:00:04]} Nf6 {[%emt 0:00:08]} 2. c4 {[%emt 0:00:05]} e6 {[%emt 0:00:07]} 3. Nc3 {[%emt 0:00:20]} Bb4 {[%emt 0:00:16]} 4. e3 {[%emt 0:00:17]} O-O {[%emt 0:00:17]} 5. Bd2 {[%emt 0:00:34]} d5 {[%emt 0:00:10]} 6. Nf3 {[%emt 0:00:05]} a6 {[%emt 0:05:20] E51: Nimzo-Indian: Rubinstein: 4...0-0 5 Nf3 d5.} 7. Rc1 {[%emt 0:01:43]} dxc4 {[%emt 0:01:33]} 8. Bxc4 {[%emt 0:00:55]} b5 {[%emt 0:01:36]} 9. Bd3 {[%emt 0:02:51]} Bb7 {[%emt 0:00:08]} 10. Ne4 $146 {[%emt 0:08:49]} ({Predecessor:} 10. a3 Be7 11. b4 Nbd7 12. e4 c5 13. e5 cxd4 14. Ne2 Ng4 15. Bf4 Bxf3 16. gxf3 Ngxe5 17. Nxd4 {0-1 Bluebaum,M (2655)-Anton Guijarro,D (2670) Titled Tuesday intern op 23rd Jan Late blitz 2024 (8)}) 10... Bxd2+ {[%emt 0:02:29]} 11. Nexd2 {[%emt 0:03:41]} Nbd7 {[%emt 0:01:23]} 12. O-O {[%emt 0:00:22]} Rc8 {[%emt 0:07:11]} 13. e4 {[%emt 0:18:10]} c5 {[%emt 0:21:33]} 14. e5 {[%emt 0:00:24]} Nd5 {[%emt 0:00:29]} 15. Ne4 {[%emt 0:02:21]} c4 {[%emt 0:05:23]} 16. Bb1 {[%emt 0:00:20]} f5 {[%emt 0:02:07]} 17. exf6 {[%emt 0:01:02]} N7xf6 {[%emt 0:01:01]} 18. Nc5 {[%emt 0:03:46]} Qb6 {[%emt 0:00:18]} 19. Qd2 {[%emt 0:02:14]} Rxc5 {[%emt 0:06:27]} (19... Rcd8 $14) 20. dxc5 $16 {[%emt 0:00:05]} Qxc5 {[%emt 0:00:08]} 21. Rfe1 {[%emt 0:04:40]} Qc7 {[%emt 0:03:26] [#]} 22. Ne5 $1 {[%emt 0:05:22]} (22. Rxe6 Nf4 23. Ree1 Bxf3 24. gxf3 Ng4 25. fxg4 Nh3+ 26. Kg2 (26. Kh1 Nxf2+ 27. Kg1 Nh3+ 28. Kg2 Rf2+ 29. Qxf2 Nxf2 $16) 26... Rxf2+ 27. Qxf2 Nxf2 28. Kxf2 Qf4+ 29. Ke2 Qxg4+ 30. Ke3 Qh3+ 31. Kd4 Qxh2 $16) 22... Ba8 {[%emt 0:12:10]} 23. Qd4 {[%emt 0:03:31]} (23. f3 $16) 23... Rd8 {[%emt 0:01:01]} 24. Qh4 {[%emt 0:02:00]} h6 {[%emt 0:01:01]} 25. h3 {[%emt 0:04:07]} Rf8 {[%emt 0:09:03]} 26. Qg3 {[%emt 0:03:59]} Qb6 {[%emt 0:06:04]} 27. Nf3 {[%emt 0:05:03]} (27. Bg6 $142) 27... Nh5 $16 {[%emt 0:05:46]} 28. Qe5 {[%emt 0:06:11]} (28. Qg6 $6 Ndf6 $11) ({White should play} 28. Qg4 $16 Ndf4 29. Rcd1) 28... Ndf4 {[%emt 0:04:24]} 29. Re3 {[%emt 0:02:20]} Rd8 {[%emt 0:01:56]} 30. Be4 {[%emt 0:03:38]} Bxe4 {[%emt 0:00:10]} 31. Qxe4 {[%emt 0:00:03]} (31. Rxe4 $2 {too greedy.} Rd5 (31... Nd3 32. Qxh5 Nxc1 33. Qg4 $17) 32. Qc3 Ng3 $19) 31... Nd3 {[%emt 0:00:08]} 32. Rc2 {[%emt 0:01:47]} (32. Qxe6+ $2 {perishes.} Qxe6 33. Rxe6 Nxc1 $19) 32... Rd6 {[%emt 0:02:25]} 33. Qa8+ {[%emt 0:03:53]} Rd8 {[%emt 0:00:12]} 34. Rxe6 $1 {[%emt 0:01:12]} Qxe6 {[%emt 0:01:02]} (34... Qxf2+ $142 35. Rxf2 Rxa8) 35. Qxd8+ $16 {[%emt 0:00:04]} Kh7 {[%emt 0:00:13]} 36. Qh4 {[%emt 0:01:59]} Qe8 {[%emt 0:00:40]} (36... Qg6 $16) 37. Qg4 $18 {[%emt 0:02:32]} Nhf4 {[%emt 0:00:34]} 38. Kh2 {[%emt 0:01:33]} Qe4 {[%emt 0:00:33]} (38... Qe6 $142 39. g3 Qxg4 40. hxg4 Nd5) 39. Rd2 {[%emt 0:01:29]} g5 $2 {[%emt 0:00:30]} (39... Qd5 40. Nh4 Qe6 41. Qf5+ Qxf5 42. Nxf5 Kg6) 40. Qxg5 $18 {[%emt 0:02:59]} Nd5 {[%emt 0:00:34]} 41. Qh5 {[%emt 0:31:46]} 1-0